[Event "Chessable Masters - Torneo preliminare"]
[White "Flores, Diego"]
[Black "Mamedov, Rauf"]
[WhiteFideId "108049"]
[BlackFideId "13401653"]
[WhiteElo "2598"]
[BlackElo "2632"]
[Result "1-0"]
[Round "8"]
[TimeControl "600+2"]
[Date "2023.03.13"]
[WhiteClock "0:05:28"]
[BlackClock "0:07:07"]

1. c4 {[%clk 0:09:57]}  Nf6 {[%clk 0:10:00]} 2. Nc3 {[%clk 0:09:55]}  g6 {[%clk 0:10:01]} 3. e4 {[%clk 0:09:53]}  Bg7 {[%clk 0:10:00]} 4. d4 {[%clk 0:09:52]}  O-O {[%clk 0:09:59]} 5. Nf3 {[%clk 0:09:53]}  d6 {[%clk 0:10:00]} 6. Be2 {[%clk 0:09:52]}  e5 {[%clk 0:10:01]} 7. d5 {[%clk 0:09:52]}  a5 {[%clk 0:10:02]} 8. Bg5 {[%clk 0:09:45]}  h6 {[%clk 0:10:01]} 9. Bh4 {[%clk 0:08:48]}  Na6 {[%clk 0:09:48]} 10. Nd2 {[%clk 0:08:48]}  Nc5 {[%clk 0:09:44]} 11. Qc2 {[%clk 0:08:27]}  Bd7 {[%clk 0:09:38]} 12. b3 {[%clk 0:08:22]}  Qe8 {[%clk 0:09:31]} 13. a3 {[%clk 0:08:18]}  g5 {[%clk 0:09:32]} 14. Bg3 {[%clk 0:08:18]}  h5 {[%clk 0:09:33]} 15. f3 {[%clk 0:08:13]}  c6 {[%clk 0:09:20]} 16. Bf2 {[%clk 0:08:07]}  cxd5 {[%clk 0:09:19]} 17. cxd5 {[%clk 0:08:02]}  Rc8 {[%clk 0:09:20]} 18. Nc4 {[%clk 0:07:57]}  Qe7 {[%clk 0:09:09]} 19. a4 {[%clk 0:07:46]}  h4 {[%clk 0:09:06]} 20. g4 {[%clk 0:06:44]}  hxg3 {[%clk 0:09:00]} 21. hxg3 {[%clk 0:06:45]}  g4 {[%clk 0:09:02]} 22. Be3 {[%clk 0:06:45]}  gxf3 {[%clk 0:09:01]} 23. Bxf3 {[%clk 0:06:46]}  Ng4 {[%clk 0:09:03]} 24. Bxg4 {[%clk 0:06:39]}  Bxg4 {[%clk 0:09:04]} 25. Qh2 {[%clk 0:06:40]}  f5 {[%clk 0:08:39]} 26. Qh7+ {[%clk 0:06:21]}  Kf7 {[%clk 0:08:32]} 27. Rh6 {[%clk 0:06:22]}  Ke8 {[%clk 0:07:07]} 28. Bxc5 {[%clk 0:05:28]}  Bxh6 {[%clk 0:07:07]} 29. Nxd6+ {[%clk 0:05:28]} 1-0


[Site "Internet"]

[Event "Chessable Masters - Torneo preliminare"]
[White "Predke, Alexandr"]
[Black "Hambleton, Aman"]
[WhiteFideId "24107581"]
[BlackFideId "2606577"]
[WhiteElo "2582"]
[BlackElo "2447"]
[Result "1-0"]
[Round "8"]
[TimeControl "600+2"]
[Date "2023.03.13"]
[WhiteClock "0:08:07"]
[BlackClock "0:00:06"]

1. Nf3 {[%clk 0:10:01]}  d5 {[%clk 0:09:39]} 2. d3 {[%clk 0:10:01]}  Nc6 {[%clk 0:08:56]} 3. Bf4 {[%clk 0:09:44]}  f6 {[%clk 0:08:26]} 4. d4 {[%clk 0:09:38]}  Bf5 {[%clk 0:08:26]} 5. e3 {[%clk 0:09:35]}  g5 {[%clk 0:07:23]} 6. Bg3 {[%clk 0:09:36]}  e6 {[%clk 0:07:17]} 7. c3 {[%clk 0:09:29]}  h5 {[%clk 0:06:51]} 8. h4 {[%clk 0:09:29]}  g4 {[%clk 0:06:52]} 9. Ng1 {[%clk 0:09:31]}  Bd6 {[%clk 0:06:50]} 10. Bb5 {[%clk 0:09:20]}  Ne7 {[%clk 0:06:48]} 11. Nd2 {[%clk 0:09:16]}  Bxg3 {[%clk 0:06:38]} 12. fxg3 {[%clk 0:09:18]}  Qd6 {[%clk 0:06:39]} 13. Ne2 {[%clk 0:09:18]}  O-O-O {[%clk 0:06:00]} 14. O-O {[%clk 0:09:16]}  e5 {[%clk 0:04:42]} 15. Kh2 {[%clk 0:09:15]}  Bg6 {[%clk 0:04:27]} 16. Qe1 {[%clk 0:09:09]}  a6 {[%clk 0:04:07]} 17. Bxc6 {[%clk 0:09:08]}  Qxc6 {[%clk 0:03:31]} 18. Qf2 {[%clk 0:09:05]}  Rd6 {[%clk 0:03:11]} 19. a4 {[%clk 0:09:03]}  Bd3 {[%clk 0:02:59]} 20. Rfc1 {[%clk 0:09:04]}  Re6 {[%clk 0:02:51]} 21. b4 {[%clk 0:08:55]}  Bxe2 {[%clk 0:00:57]} 22. Qxe2 {[%clk 0:08:57]}  exd4 {[%clk 0:00:58]} 23. cxd4 {[%clk 0:08:57]}  Qd6 {[%clk 0:01:00]} 24. b5 {[%clk 0:08:39]}  Nf5 {[%clk 0:00:43]} 25. Qf2 {[%clk 0:08:40]}  Nxe3 {[%clk 0:00:08]} 26. Nb3 {[%clk 0:08:17]}  Nc4 {[%clk 0:00:03]} 27. Nc5 {[%clk 0:08:17]}  Re7 {[%clk 0:00:03]} 28. bxa6 {[%clk 0:08:18]}  b6 {[%clk 0:00:04]} 29. a7 {[%clk 0:08:17]}  Qc6 {[%clk 0:00:06]} 30. Qxf6 {[%clk 0:08:07]} 1-0


[Site "Internet"]

[Event "Chessable Masters - Torneo preliminare"]
[White "Sattarov, Bobir"]
[Black "Huschenbeth, Niclas"]
[WhiteFideId "14203081"]
[BlackFideId "24604747"]
[WhiteElo "2333"]
[BlackElo "2566"]
[Result "0-1"]
[Round "8"]
[TimeControl "600+2"]
[Date "2023.03.13"]
[WhiteClock "0:01:08"]
[BlackClock "0:00:07"]

1. e4 {[%clk 0:10:01]}  c5 {[%clk 0:10:00]} 2. Nc3 {[%clk 0:10:01]}  d6 {[%clk 0:10:00]} 3. Nf3 {[%clk 0:10:00]}  Nf6 {[%clk 0:09:58]} 4. e5 {[%clk 0:10:01]}  dxe5 {[%clk 0:09:59]} 5. Nxe5 {[%clk 0:10:03]}  a6 {[%clk 0:09:54]} 6. g3 {[%clk 0:10:04]}  Qd6 {[%clk 0:09:49]} 7. Nf3 {[%clk 0:10:00]}  Bg4 {[%clk 0:09:35]} 8. Bg2 {[%clk 0:10:00]}  Nc6 {[%clk 0:09:07]} 9. h3 {[%clk 0:09:59]}  Bh5 {[%clk 0:09:06]} 10. O-O {[%clk 0:09:59]}  e6 {[%clk 0:09:05]} 11. d3 {[%clk 0:10:00]}  Be7 {[%clk 0:09:05]} 12. Bf4 {[%clk 0:10:01]}  Qd7 {[%clk 0:08:51]} 13. a4 {[%clk 0:10:00]}  O-O {[%clk 0:08:46]} 14. g4 {[%clk 0:10:01]}  Bg6 {[%clk 0:08:47]} 15. Nd2 {[%clk 0:10:02]}  Nd5 {[%clk 0:08:39]} 16. Bg3 {[%clk 0:09:59]}  Rad8 {[%clk 0:08:19]} 17. Nc4 {[%clk 0:09:57]}  Nd4 {[%clk 0:06:48]} 18. Ne5 {[%clk 0:08:33]}  Qc8 {[%clk 0:06:48]} 19. Nxd5 {[%clk 0:08:11]}  exd5 {[%clk 0:06:49]} 20. c3 {[%clk 0:08:12]}  Nc6 {[%clk 0:06:35]} 21. Qd2 {[%clk 0:06:58]}  Bd6 {[%clk 0:05:30]} 22. f4 {[%clk 0:06:38]}  Bxe5 {[%clk 0:05:22]} 23. fxe5 {[%clk 0:06:40]}  d4 {[%clk 0:05:18]} 24. c4 {[%clk 0:05:28]}  Rfe8 {[%clk 0:04:37]} 25. Rfe1 {[%clk 0:05:08]}  Qc7 {[%clk 0:03:49]} 26. Qf2 {[%clk 0:04:18]}  Nxe5 {[%clk 0:02:19]} 27. Bd5 {[%clk 0:04:00]}  Rd7 {[%clk 0:01:52]} 28. Rxe5 {[%clk 0:02:48]}  Rxe5 {[%clk 0:01:52]} 29. Bxe5 {[%clk 0:02:50]}  Qxe5 {[%clk 0:01:52]} 30. Re1 {[%clk 0:02:51]}  Qb8 {[%clk 0:01:44]} 31. Qf4 {[%clk 0:02:51]}  Qf8 {[%clk 0:01:24]} 32. a5 {[%clk 0:02:33]}  Bxd3 {[%clk 0:01:08]} 33. Qf3 {[%clk 0:02:34]}  Bg6 {[%clk 0:01:04]} 34. Bxb7 {[%clk 0:02:35]}  d3 {[%clk 0:00:50]} 35. Bd5 {[%clk 0:02:34]}  h6 {[%clk 0:00:51]} 36. h4 {[%clk 0:02:34]}  Re7 {[%clk 0:00:36]} 37. Rf1 {[%clk 0:02:23]}  Qe8 {[%clk 0:00:33]} 38. h5 {[%clk 0:02:21]}  Be4 {[%clk 0:00:34]} 39. Bxe4 {[%clk 0:01:06]}  Rxe4 {[%clk 0:00:35]} 40. Qxd3 {[%clk 0:01:07]}  Rxg4+ {[%clk 0:00:36]} 41. Kh1 {[%clk 0:01:09]}  Qe7 {[%clk 0:00:14]} 42. Rf3 {[%clk 0:01:07]}  Qe1+ {[%clk 0:00:13]} 43. Qf1 {[%clk 0:01:09]}  Qxf1+ {[%clk 0:00:11]} 44. Rxf1 {[%clk 0:01:10]}  Rxc4 {[%clk 0:00:12]} 45. Rf5 {[%clk 0:01:07]}  Kf8 {[%clk 0:00:11]} 46. Rd5 {[%clk 0:01:04]}  Ke7 {[%clk 0:00:11]} 47. Re5+ {[%clk 0:01:04]}  Kd6 {[%clk 0:00:12]} 48. Re8 {[%clk 0:01:03]}  Ra4 {[%clk 0:00:08]} 49. Rg8 {[%clk 0:01:01]}  Rh4+ {[%clk 0:00:08]} 50. Kg2 {[%clk 0:01:01]}  Rxh5 {[%clk 0:00:10]} 51. Ra8 {[%clk 0:01:02]}  Kc6 {[%clk 0:00:06]} 52. Rxa6+ {[%clk 0:01:03]}  Kb5 {[%clk 0:00:07]} 53. Ra7 {[%clk 0:01:04]}  Rg5+ {[%clk 0:00:02]} 54. Kf3 {[%clk 0:01:04]}  h5 {[%clk 0:00:02]} 55. Kf4 {[%clk 0:01:05]}  Rg4+ {[%clk 0:00:03]} 56. Kf3 {[%clk 0:01:07]}  Rg6 {[%clk 0:00:04]} 57. Ke4 {[%clk 0:01:07]}  h4 {[%clk 0:00:04]} 58. Rxf7 {[%clk 0:01:06]}  h3 {[%clk 0:00:05]} 59. Rf2 {[%clk 0:01:07]}  Rg2 {[%clk 0:00:05]} 60. Rf1 {[%clk 0:01:06]}  h2 {[%clk 0:00:06]} 61. Rh1 {[%clk 0:01:08]}  Kxa5 {[%clk 0:00:07]} 0-1


[Site "Internet"]

[Event "Chessable Masters - Torneo preliminare"]
[White "Matinian, Nikita"]
[Black "Cuenca Jimenez, Jose Fernando"]
[WhiteFideId "24129100"]
[BlackFideId "2255570"]
[WhiteElo "2326"]
[BlackElo "2455"]
[Result "1-0"]
[Round "8"]
[TimeControl "600+2"]
[Date "2023.03.13"]
[WhiteClock "0:05:04"]
[BlackClock "0:01:47"]

1. e4 {[%clk 0:09:51]}  c5 {[%clk 0:09:59]} 2. Nf3 {[%clk 0:09:51]}  Nc6 {[%clk 0:10:01]} 3. Bb5 {[%clk 0:09:51]}  e6 {[%clk 0:09:55]} 4. c3 {[%clk 0:09:51]}  Nge7 {[%clk 0:09:48]} 5. d4 {[%clk 0:09:50]}  cxd4 {[%clk 0:09:05]} 6. cxd4 {[%clk 0:09:52]}  d5 {[%clk 0:09:07]} 7. e5 {[%clk 0:09:49]}  Nf5 {[%clk 0:09:04]} 8. Nc3 {[%clk 0:09:36]}  Be7 {[%clk 0:08:57]} 9. Bd3 {[%clk 0:09:25]}  Nfxd4 {[%clk 0:08:41]} 10. Nxd4 {[%clk 0:09:25]}  Nxd4 {[%clk 0:08:42]} 11. Qg4 {[%clk 0:09:26]}  Nc6 {[%clk 0:08:13]} 12. Qxg7 {[%clk 0:09:25]}  Kd7 {[%clk 0:07:51]} 13. Qxf7 {[%clk 0:07:52]}  Nxe5 {[%clk 0:06:50]} 14. Bb5+ {[%clk 0:07:52]}  Nc6 {[%clk 0:05:37]} 15. O-O {[%clk 0:07:00]}  Qf8 {[%clk 0:05:24]} 16. Qh5 {[%clk 0:06:59]}  Kc7 {[%clk 0:05:20]} 17. Bh6 {[%clk 0:06:55]}  Qf6 {[%clk 0:05:12]} 18. Rad1 {[%clk 0:06:19]}  Bd7 {[%clk 0:05:05]} 19. Rxd5 {[%clk 0:06:17]}  Qg6 {[%clk 0:03:10]} 20. Bf4+ {[%clk 0:06:12]}  Kc8 {[%clk 0:03:03]} 21. Bxc6 {[%clk 0:05:51]}  Bxc6 {[%clk 0:02:51]} 22. Qe5 {[%clk 0:05:49]}  Bd8 {[%clk 0:02:32]} 23. Rxd8+ {[%clk 0:05:37]}  Kxd8 {[%clk 0:02:31]} 24. Qxh8+ {[%clk 0:05:38]}  Ke7 {[%clk 0:02:03]} 25. Bg5+ {[%clk 0:05:34]}  Qxg5 {[%clk 0:02:00]} 26. Qxh7+ {[%clk 0:05:35]}  Kf6 {[%clk 0:01:51]} 27. Ne4+ {[%clk 0:05:33]}  Bxe4 {[%clk 0:01:49]} 28. Qxe4 {[%clk 0:05:35]}  Rd8 {[%clk 0:01:48]} 29. Qxb7 {[%clk 0:05:31]}  Rd2 {[%clk 0:01:46]} 30. Qxa7 {[%clk 0:05:22]}  Qd5 {[%clk 0:01:41]} 31. Qa3 {[%clk 0:04:55]}  Rd3 {[%clk 0:01:39]} 32. Qf8+ {[%clk 0:04:54]}  Kg6 {[%clk 0:01:41]} 33. h4 {[%clk 0:04:52]}  Rd4 {[%clk 0:01:38]} 34. Qg8+ {[%clk 0:04:51]}  Kf6 {[%clk 0:01:38]} 35. Qg5+ {[%clk 0:04:52]}  Qxg5 {[%clk 0:01:40]} 36. hxg5+ {[%clk 0:04:54]}  Kxg5 {[%clk 0:01:42]} 37. Ra1 {[%clk 0:04:55]}  Rd2 {[%clk 0:01:41]} 38. a4 {[%clk 0:04:55]}  Rxb2 {[%clk 0:01:43]} 39. a5 {[%clk 0:04:57]}  Rb7 {[%clk 0:01:43]} 40. a6 {[%clk 0:04:58]}  Ra7 {[%clk 0:01:45]} 41. f3 {[%clk 0:04:57]}  Kf5 {[%clk 0:01:47]} 42. Kf2 {[%clk 0:04:59]}  Ke5 {[%clk 0:01:49]} 43. Ke3 {[%clk 0:05:00]}  Kd5 {[%clk 0:01:50]} 44. g4 {[%clk 0:05:01]}  Kc5 {[%clk 0:01:50]} 45. g5 {[%clk 0:05:02]}  Kb6 {[%clk 0:01:51]} 46. g6 {[%clk 0:05:04]}  e5 {[%clk 0:01:47]} 47. Ke4 {[%clk 0:05:04]}  Kb5 {[%clk 0:01:48]} 48. g7 {[%clk 0:05:03]}  Rxg7 {[%clk 0:01:47]} 49. a7 {[%clk 0:05:04]} 1-0


[Site "Internet"]

[Event "Chessable Masters - Torneo preliminare"]
[White "Girya, Olga"]
[Black "Mekhitarian, Krikor Sevag"]
[WhiteFideId "4195752"]
[BlackFideId "2107660"]
[WhiteElo "2327"]
[BlackElo "2594"]
[Result "0-1"]
[Round "8"]
[TimeControl "600+2"]
[Date "2023.03.13"]
[WhiteClock "0:00:38"]
[BlackClock "0:04:49"]

1. d4 {[%clk 0:10:01]}  Nf6 {[%clk 0:10:00]} 2. Nf3 {[%clk 0:10:02]}  e6 {[%clk 0:09:57]} 3. c4 {[%clk 0:10:02]}  d5 {[%clk 0:09:51]} 4. Nc3 {[%clk 0:10:03]}  a6 {[%clk 0:09:35]} 5. cxd5 {[%clk 0:09:58]}  exd5 {[%clk 0:09:37]} 6. Bg5 {[%clk 0:09:57]}  Be6 {[%clk 0:09:38]} 7. e3 {[%clk 0:09:49]}  Nbd7 {[%clk 0:09:38]} 8. Bd3 {[%clk 0:09:29]}  Bd6 {[%clk 0:09:37]} 9. Bf4 {[%clk 0:08:54]}  Bxf4 {[%clk 0:09:03]} 10. exf4 {[%clk 0:08:55]}  Bg4 {[%clk 0:09:05]} 11. Qe2+ {[%clk 0:08:55]}  Kf8 {[%clk 0:09:02]} 12. O-O {[%clk 0:08:38]}  c6 {[%clk 0:09:02]} 13. h3 {[%clk 0:07:57]}  Bxf3 {[%clk 0:09:02]} 14. Qxf3 {[%clk 0:07:59]}  Qb6 {[%clk 0:08:39]} 15. g4 {[%clk 0:06:29]}  g6 {[%clk 0:08:02]} 16. g5 {[%clk 0:05:01]}  Nh5 {[%clk 0:07:51]} 17. Ne2 {[%clk 0:04:55]}  Kg7 {[%clk 0:07:37]} 18. f5 {[%clk 0:04:37]}  Rhe8 {[%clk 0:07:37]} 19. f6+ {[%clk 0:04:10]}  Kg8 {[%clk 0:07:36]} 20. Rfe1 {[%clk 0:01:59]}  Qxb2 {[%clk 0:05:51]} 21. Nf4 {[%clk 0:00:48]}  Qxd4 {[%clk 0:04:50]} 22. Nxh5 {[%clk 0:00:41]}  Ne5 {[%clk 0:04:52]} 23. Rxe5 {[%clk 0:00:38]}  Qxa1+ {[%clk 0:04:49]} 0-1


[Site "Internet"]

[Event "Chessable Masters - Torneo preliminare"]
[White "Iskusnyh, Sergei"]
[Black "Pranav, V"]
[WhiteFideId "4120027"]
[BlackFideId "25060783"]
[WhiteElo "2345"]
[BlackElo "2462"]
[Result "0-1"]
[Round "8"]
[TimeControl "600+2"]
[Date "2023.03.13"]
[WhiteClock "0:02:41"]
[BlackClock "0:08:21"]

1. d4 {[%clk 0:10:01]}  Nf6 {[%clk 0:09:50]} 2. c4 {[%clk 0:10:02]}  e6 {[%clk 0:09:46]} 3. g3 {[%clk 0:10:00]}  c5 {[%clk 0:09:46]} 4. Nf3 {[%clk 0:09:58]}  cxd4 {[%clk 0:09:44]} 5. Nxd4 {[%clk 0:09:57]}  Be7 {[%clk 0:09:45]} 6. Bg2 {[%clk 0:09:52]}  O-O {[%clk 0:09:47]} 7. O-O {[%clk 0:09:05]}  Nc6 {[%clk 0:09:44]} 8. Nc3 {[%clk 0:09:03]}  a6 {[%clk 0:09:42]} 9. b3 {[%clk 0:08:45]}  Qb6 {[%clk 0:09:15]} 10. Nc2 {[%clk 0:08:31]}  d6 {[%clk 0:09:09]} 11. Bb2 {[%clk 0:07:45]}  Rd8 {[%clk 0:09:05]} 12. e4 {[%clk 0:07:23]}  Bd7 {[%clk 0:09:02]} 13. Qe2 {[%clk 0:07:11]}  Rac8 {[%clk 0:09:01]} 14. Rfd1 {[%clk 0:07:00]}  Ne5 {[%clk 0:08:51]} 15. Ne3 {[%clk 0:06:50]}  Be8 {[%clk 0:08:48]} 16. Rac1 {[%clk 0:06:39]}  Qa7 {[%clk 0:08:33]} 17. h3 {[%clk 0:04:00]}  h5 {[%clk 0:08:28]} 18. f4 {[%clk 0:03:45]}  Ng6 {[%clk 0:08:28]} 19. h4 {[%clk 0:03:06]}  Ng4 {[%clk 0:08:24]} 20. Re1 {[%clk 0:02:53]}  d5 {[%clk 0:08:23]} 21. cxd5 {[%clk 0:02:41]}  Nxe3 {[%clk 0:08:21]} 0-1


[Site "Internet"]

[Event "Chessable Masters - Torneo preliminare"]
[White "Rustemov, Alexander"]
[Black "Jonkman, Harmen"]
[WhiteFideId "4119002"]
[BlackFideId "1002708"]
[WhiteElo "2494"]
[BlackElo "2351"]
[Result "1-0"]
[Round "8"]
[TimeControl "600+2"]
[Date "2023.03.13"]
[WhiteClock "0:03:47"]
[BlackClock "0:00:43"]

1. d4 {[%clk 0:09:54]}  Nf6 {[%clk 0:10:00]} 2. c4 {[%clk 0:09:51]}  e6 {[%clk 0:10:00]} 3. Nf3 {[%clk 0:09:51]}  Bb4+ {[%clk 0:09:59]} 4. Bd2 {[%clk 0:09:51]}  a5 {[%clk 0:09:59]} 5. g3 {[%clk 0:09:50]}  b6 {[%clk 0:09:52]} 6. Bg2 {[%clk 0:09:50]}  Bb7 {[%clk 0:09:52]} 7. O-O {[%clk 0:09:50]}  Be7 {[%clk 0:09:45]} 8. Qc2 {[%clk 0:09:30]}  d6 {[%clk 0:09:13]} 9. Nc3 {[%clk 0:09:29]}  Nbd7 {[%clk 0:09:12]} 10. e4 {[%clk 0:09:28]}  e5 {[%clk 0:09:12]} 11. h3 {[%clk 0:09:14]}  O-O {[%clk 0:09:11]} 12. Be3 {[%clk 0:09:05]}  Re8 {[%clk 0:08:59]} 13. Rfe1 {[%clk 0:09:04]}  Bf8 {[%clk 0:08:48]} 14. Rad1 {[%clk 0:08:51]}  exd4 {[%clk 0:08:33]} 15. Nxd4 {[%clk 0:08:50]}  g6 {[%clk 0:08:28]} 16. Ndb5 {[%clk 0:07:51]}  Bg7 {[%clk 0:08:18]} 17. e5 {[%clk 0:07:42]}  Bxg2 {[%clk 0:07:39]} 18. exf6 {[%clk 0:07:42]}  Bxh3 {[%clk 0:07:35]} 19. fxg7 {[%clk 0:07:42]}  Ne5 {[%clk 0:07:33]} 20. f4 {[%clk 0:07:00]}  Nf3+ {[%clk 0:06:43]} 21. Kf2 {[%clk 0:06:59]}  Nxe1 {[%clk 0:06:40]} 22. Rxe1 {[%clk 0:06:59]}  c6 {[%clk 0:06:38]} 23. Nd4 {[%clk 0:06:52]}  Rc8 {[%clk 0:06:21]} 24. Qd2 {[%clk 0:06:28]}  d5 {[%clk 0:06:03]} 25. cxd5 {[%clk 0:06:27]}  cxd5 {[%clk 0:06:04]} 26. Nf3 {[%clk 0:06:26]}  Bf5 {[%clk 0:05:44]} 27. Bd4 {[%clk 0:06:17]}  Be4 {[%clk 0:05:09]} 28. Ng5 {[%clk 0:05:51]}  f5 {[%clk 0:04:42]} 29. Ngxe4 {[%clk 0:05:22]}  dxe4 {[%clk 0:04:26]} 30. Rd1 {[%clk 0:05:13]}  e3+ {[%clk 0:03:12]} 31. Bxe3 {[%clk 0:05:11]}  Qxd2+ {[%clk 0:03:13]} 32. Rxd2 {[%clk 0:05:10]}  Red8 {[%clk 0:03:13]} 33. Rxd8+ {[%clk 0:04:16]}  Rxd8 {[%clk 0:03:13]} 34. Bxb6 {[%clk 0:04:17]}  Rd2+ {[%clk 0:03:11]} 35. Ke3 {[%clk 0:04:18]}  Rxb2 {[%clk 0:02:36]} 36. Bd4 {[%clk 0:04:17]}  a4 {[%clk 0:02:09]} 37. Nd5 {[%clk 0:04:13]}  Rb7 {[%clk 0:02:07]} 38. Bf6 {[%clk 0:03:55]}  Kf7 {[%clk 0:01:14]} 39. Ne7 {[%clk 0:03:54]}  Kxf6 {[%clk 0:01:12]} 40. g8=Q {[%clk 0:03:53]}  Rxe7+ {[%clk 0:01:12]} 41. Kd4 {[%clk 0:03:52]}  Re4+ {[%clk 0:01:09]} 42. Kd5 {[%clk 0:03:48]}  h5 {[%clk 0:00:43]} 43. Qf8# {[%clk 0:03:47]} 1-0


[Site "Internet"]

[Event "Chessable Masters - Torneo preliminare"]
[White "Abdusattorov, Nodirbek"]
[Black "Keymer, Vincent"]
[WhiteFideId "14204118"]
[BlackFideId "12940690"]
[WhiteElo "2714"]
[BlackElo "2630"]
[Result "1/2-1/2"]
[Round "9"]
[TimeControl "600+2"]
[Date "2023.03.13"]
[WhiteClock "0:02:34"]
[BlackClock "0:01:38"]

1. e4 {[%clk 0:10:01]}  c6 {[%clk 0:10:00]} 2. d4 {[%clk 0:10:02]}  d5 {[%clk 0:10:02]} 3. exd5 {[%clk 0:09:59]}  cxd5 {[%clk 0:10:03]} 4. Bd3 {[%clk 0:10:00]}  Nf6 {[%clk 0:10:05]} 5. c3 {[%clk 0:10:01]}  Bg4 {[%clk 0:10:05]} 6. Nf3 {[%clk 0:10:01]}  e6 {[%clk 0:09:53]} 7. Bf4 {[%clk 0:09:54]}  Bd6 {[%clk 0:09:46]} 8. Bxd6 {[%clk 0:09:53]}  Qxd6 {[%clk 0:09:48]} 9. Nbd2 {[%clk 0:09:55]}  Nc6 {[%clk 0:09:47]} 10. O-O {[%clk 0:09:56]}  O-O {[%clk 0:09:48]} 11. Re1 {[%clk 0:09:53]}  Rae8 {[%clk 0:09:00]} 12. Qa4 {[%clk 0:09:40]}  Bxf3 {[%clk 0:08:51]} 13. Nxf3 {[%clk 0:09:39]}  Nd7 {[%clk 0:08:53]} 14. Re3 {[%clk 0:09:37]}  g6 {[%clk 0:07:59]} 15. Rae1 {[%clk 0:09:35]}  Qc7 {[%clk 0:08:00]} 16. h4 {[%clk 0:09:18]}  Kg7 {[%clk 0:07:40]} 17. g3 {[%clk 0:08:52]}  Re7 {[%clk 0:07:32]} 18. Kg2 {[%clk 0:08:49]}  Rfe8 {[%clk 0:07:30]} 19. Qd1 {[%clk 0:08:10]}  e5 {[%clk 0:06:44]} 20. dxe5 {[%clk 0:08:07]}  Ndxe5 {[%clk 0:06:46]} 21. Bb5 {[%clk 0:07:31]}  Nxf3 {[%clk 0:06:27]} 22. Qxf3 {[%clk 0:07:33]}  Qb6 {[%clk 0:04:54]} 23. Qxd5 {[%clk 0:05:37]}  Rxe3 {[%clk 0:04:51]} 24. Rxe3 {[%clk 0:05:38]}  Rxe3 {[%clk 0:04:51]} 25. fxe3 {[%clk 0:05:38]}  Qxe3 {[%clk 0:04:42]} 26. Qd3 {[%clk 0:04:57]}  Qb6 {[%clk 0:03:57]} 27. Qe2 {[%clk 0:04:48]}  Qc5 {[%clk 0:03:45]} 28. Bxc6 {[%clk 0:04:34]}  Qxc6+ {[%clk 0:03:44]} 29. Kh2 {[%clk 0:04:36]}  h5 {[%clk 0:03:29]} 30. c4 {[%clk 0:04:33]}  Qc5 {[%clk 0:03:19]} 31. b3 {[%clk 0:04:22]}  a5 {[%clk 0:03:01]} 32. Kg2 {[%clk 0:04:22]}  b6 {[%clk 0:02:57]} 33. Qb2+ {[%clk 0:04:22]}  f6 {[%clk 0:02:43]} 34. Qd2 {[%clk 0:04:20]}  Qc6+ {[%clk 0:02:42]} 35. Kf2 {[%clk 0:04:16]}  Kf7 {[%clk 0:02:43]} 36. Qd5+ {[%clk 0:02:45]}  Qxd5 {[%clk 0:01:39]} 37. cxd5 {[%clk 0:02:47]}  Ke7 {[%clk 0:01:41]} 38. Ke3 {[%clk 0:02:47]}  Kd6 {[%clk 0:01:42]} 39. Kd4 {[%clk 0:02:49]}  Kd7 {[%clk 0:01:43]} 40. Kc4 {[%clk 0:02:38]}  Kc7 {[%clk 0:01:38]} 41. Kd3 {[%clk 0:02:29]}  Kd6 {[%clk 0:01:36]} 42. Kd4 {[%clk 0:02:30]}  Kd7 {[%clk 0:01:38]} 43. Kc4 {[%clk 0:02:31]}  Kc7 {[%clk 0:01:37]} 44. Kd3 {[%clk 0:02:32]}  Kd6 {[%clk 0:01:38]} 45. Kd4 {[%clk 0:02:34]} 1/2-1/2


[Site "Internet"]